fUSD/lending_fUSD_20260112
["ID","MTS","AMOUNT","RATE_DAILY","PERIOD"]
[401459567,1768239045643,-151.0,0.00017882,2]
[401459568,1768239045653,-151.0,0.00017882,2]
[401459569,1768239045664,-151.0,0.00017882,2]
[401459570,1768239045673,-151.0,0.00017882,2]
[401459571,1768239045682,-9379.565638,0.00017882,2]
[401459572,1768239045692,-2163.53589,0.00017882,2]
[401459573,1768239045700,-9379.565638,0.00017882,2]
[401459574,1768239045709,-151.0,0.00017882,2]
[401459575,1768239045719,-9379.565638,0.00017882,2]
[401459576,1768239045728,-2163.53589,0.00017882,2]
[401459577,1768239045736,-283.642245,0.00017882,2]
[401459578,1768239045746,-151.0,0.00017882,2]
[401459579,1768239045755,-2163.53589,0.00017882,2]
[401459580,1768239045764,-151.0,0.00017882,2]
[401459581,1768239045773,-151.0,0.00017882,2]
[401459582,1768239045782,-2163.53589,0.00017882,2]
[401459583,1768239045791,-1984.753085,0.00017882,2]
[401459584,1768239045802,-64575.73967699,0.00017882,2]
[401459585,1768239045812,-105045.85017587,0.00017882,2]
[401459586,1768239045822,-25000.0,0.00017882,3]
[401459587,1768239045833,-148356.09187936,0.00017883,2]
[401459588,1768239045843,-191969.6526,0.00017883,2]
[401459589,1768239045854,-151.0,0.00017891,2]
[401459590,1768239045863,-151.0,0.00017891,2]
[401459591,1768239045872,-151.0,0.00017891,2]
[401459592,1768239045883,-151.0,0.00017891,2]
[401459593,1768239045894,-151.0,0.00017891,2]
[401459594,1768239045904,-151.0,0.00017891,2]
[401459595,1768239045913,-265.615145,0.00017891,2]
[401459596,1768239045923,-440.919773,0.00017891,2]
[401459597,1768239045933,-949.908812,0.00017891,2]
[401459598,1768239045942,-440.919773,0.00017891,2]
[401459599,1768239045951,-265.615145,0.00017891,2]
[401459600,1768239045960,-949.908812,0.00017891,2]
[401459602,1768239045969,-440.919773,0.00017891,2]
[401459604,1768239045979,-2315.94614,0.00017891,2]
[401459606,1768239045988,-949.908812,0.00017891,2]
[401459608,1768239045997,-265.615145,0.00017891,2]
[401459609,1768239046006,-404.421894,0.00017891,2]
[401459610,1768239046015,-440.919773,0.00017891,2]
[401459611,1768239046025,-265.615145,0.00017891,2]
[401459612,1768239046035,-949.908812,0.00017891,2]
[401459613,1768239046044,-2315.94614,0.00017891,2]
[401459614,1768239046054,-404.421894,0.00017891,2]
[401459615,1768239046063,-151.0,0.00017891,2]
[401459616,1768239046073,-151.0,0.00017891,2]
[401459617,1768239046082,-2315.94614,0.00017891,2]
[401459618,1768239046091,-404.421894,0.00017891,2]
[401459619,1768239046101,-199.367871,0.00017891,2]
[401459620,1768239046111,-2315.94614,0.00017891,2]
[401459621,1768239046121,-151.0,0.00017891,2]
[401459622,1768239046130,-151.0,0.00017891,2]
[401459623,1768239046139,-151.0,0.00017891,2]
[401459624,1768239046148,-404.421894,0.00017891,2]
[401459625,1768239046157,-151.0,0.00017891,2]
[401459626,1768239046166,-151.0,0.00017891,2]
[401459627,1768239046176,-151.0,0.00017891,2]
[401459628,1768239046186,-202.183274,0.00017891,2]
[401459629,1768239046196,-151.0,0.00017891,2]
[401459630,1768239046205,-202.183274,0.00017891,2]
[401459631,1768239046214,-151.0,0.00017891,2]
[401459632,1768239046224,-151.0,0.00017891,2]
[401459633,1768239046233,-202.183274,0.00017891,2]
[401459634,1768239046247,-1647.039821,0.00017891,2]
[401459635,1768239046256,-202.183274,0.00017891,2]
[401459636,1768239046265,-1647.039821,0.00017891,2]
[401459637,1768239046274,-453.0959,0.00017891,2]
[401459638,1768239046284,-151.0,0.00017891,2]
[401459639,1768239046294,-453.0959,0.00017891,2]
[401459640,1768239046303,-151.0,0.00017891,2]
[401459641,1768239046313,-453.0959,0.00017891,2]
[401459642,1768239046322,-1647.039821,0.00017891,2]
[401459643,1768239046332,-453.0959,0.00017891,2]
[401459644,1768239046341,-1647.039821,0.00017891,2]
[401459645,1768239046350,-2544.397561,0.00017891,2]
[401459646,1768239046363,-2544.397561,0.00017891,2]
[401459647,1768239046372,-2544.397561,0.00017891,2]
[401459648,1768239046382,-2544.397561,0.00017891,2]
[401459649,1768239046391,-151.0,0.00017891,2]
[401459650,1768239046401,-891.223582,0.00017891,2]
[401459651,1768239046410,-891.223582,0.00017891,2]
[401459652,1768239046420,-162.036793,0.00017891,2]
[401459653,1768239046429,-891.223582,0.00017891,2]
[401459654,1768239046439,-891.223582,0.00017891,2]
[401459655,1768239046448,-151.0,0.00017891,2]
[401459656,1768239046458,-151.0,0.00017891,2]
[401459657,1768239046468,-151.0,0.00017891,2]
[401459658,1768239046478,-151.0,0.00017891,2]
[401459659,1768239046489,-264.944293,0.00017891,2]
[401459660,1768239046499,-151.0,0.00017891,2]
[401459661,1768239046510,-151.0,0.00017891,2]
[401459662,1768239046520,-151.0,0.00017891,2]
[401459663,1768239046529,-151.0,0.00017891,2]
[401459664,1768239046540,-151.0,0.00017891,2]
[401459665,1768239046549,-151.0,0.00017891,2]
[401459666,1768239046559,-151.0,0.00017891,2]
[401459667,1768239046568,-151.0,0.00017891,2]
[401459668,1768239046577,-151.0,0.00017891,2]
[401459669,1768239046586,-151.0,0.00017891,2]
[401459670,1768239046595,-283.03324,0.00017891,2]
[401459671,1768239046606,-1888.793769,0.00017891,2]
[401459672,1768239046615,-151.0,0.00017891,2]
[401459673,1768239046626,-1888.793769,0.00017891,2]
[401459674,1768239046642,-151.0,0.00017891,2]
[401459675,1768239046655,-1888.793769,0.00017891,2]
[401459676,1768239046664,-1888.793769,0.00017891,2]
[401459677,1768239046673,-214.643691,0.00017891,2]
[401459678,1768239046683,-214.643691,0.00017891,2]
[401459679,1768239046693,-214.643691,0.00017891,2]
[401459680,1768239046702,-214.643691,0.00017891,2]
[401459681,1768239046711,-25000.0,0.00017891,3]
[401459682,1768239046721,-1000.0,0.00017892,2]
[401459683,1768239046731,-1000.0,0.00017892,2]
[401459684,1768239046740,-1000.0,0.00017892,2]
[401459685,1768239046749,-500.0,0.00017894,2]
[401459686,1768239046759,-500.0,0.00017894,2]
[401459687,1768239046768,-500.0,0.00017894,2]
[401459688,1768239046777,-150.0,0.00017894,2]
[401459689,1768239046786,-232.41861165,0.00017895,2]
[401459690,1768239046795,-234.85694137,0.00017895,2]
[401459691,1768239046804,-150.0,0.00017896,2]
[401459692,1768239046813,-831.908,0.00017897,2]
[401459693,1768239046822,-569.96,0.00017897,2]
[401459694,1768239046833,-239.44755982,0.00017897,3]
[401459695,1768239046843,-1063.00738604,0.00017897,2]
[401459696,1768239046852,-151.0,0.00017897,2]
[401459697,1768239046862,-150.0,0.00017897,2]
[401459698,1768239046870,-150.0,0.00017897,2]
[401459699,1768239046880,-1063.00738603,0.00017899,2]
[401459700,1768239046890,-553.74,0.00017899,2]
[401459701,1768239046900,-300.0,0.00017899,2]
[401459702,1768239046909,-3347.64438552,0.000179,3]
[401459703,1768239046918,-30000.0,0.000179,2]
[401459704,1768239046929,-25000.0,0.000179,3]
[401459705,1768239046938,-650.2138997,0.000179,2]
[401459706,1768239046948,-162.447438,0.000179,2]
[401459707,1768239046957,-403.219361,0.000179,2]
[401459708,1768239046966,-403.219361,0.000179,2]
[401459709,1768239046976,-403.219361,0.000179,2]
[401459710,1768239046985,-403.219361,0.000179,2]
[401459711,1768239046994,-151.0,0.000179,2]
[401459712,1768239047003,-151.0,0.000179,2]
[401459713,1768239047016,-151.0,0.000179,2]
[401459714,1768239047025,-154.2514,0.000179,2]
[401459715,1768239047034,-151.0,0.000179,2]
[401459716,1768239047044,-151.0,0.000179,2]
[401459717,1768239047053,-151.0,0.000179,2]
[401459718,1768239047063,-151.0,0.000179,2]
[401459719,1768239047071,-151.0,0.000179,2]
[401459720,1768239047080,-358.657768,0.000179,2]
[401459721,1768239047090,-358.657768,0.000179,2]
[401459722,1768239047099,-358.657768,0.000179,2]
[401459723,1768239047110,-358.657768,0.000179,2]
[401459724,1768239047119,-153.895125,0.000179,2]
[401459725,1768239047128,-154.2514,0.000179,2]
[401459726,1768239047139,-154.2514,0.000179,2]
[401459727,1768239047148,-154.2514,0.000179,2]
[401459728,1768239047158,-151.0,0.000179,2]
[401459729,1768239047168,-151.0,0.000179,2]
[401459730,1768239047178,-771.304416,0.000179,2]
[401459731,1768239047187,-151.0,0.000179,2]
[401459732,1768239047196,-771.304416,0.000179,2]
[401459733,1768239047205,-771.304416,0.000179,2]
[401459734,1768239047215,-771.304416,0.000179,2]
[401459735,1768239047225,-4601.17821914,0.000179,3]
[401459736,1768239047234,-151.0,0.000179,2]
[401459737,1768239047244,-151.0,0.000179,2]
[401459738,1768239047254,-151.0,0.000179,2]
[401459739,1768239047264,-151.0,0.000179,2]
[401459740,1768239047274,-479.875376,0.000179,2]
[401459741,1768239047283,-479.875376,0.000179,2]
[401459742,1768239047292,-479.875376,0.000179,2]
[401459743,1768239047302,-479.875376,0.000179,2]
[401459744,1768239047312,-151.0,0.000179,2]
[401459745,1768239047322,-151.0,0.000179,2]
[401459746,1768239047331,-151.0,0.000179,2]
[401459747,1768239047340,-151.0,0.000179,2]
[401459748,1768239047350,-151.0,0.000179,2]
[401459749,1768239047361,-699.466395,0.000179,2]
[401459750,1768239047371,-699.466395,0.000179,2]
[401459751,1768239047381,-172.73046,0.000179,2]
[401459752,1768239047390,-699.466395,0.000179,2]
[401459753,1768239047403,-699.466395,0.000179,2]
[401459754,1768239047412,-874.374948,0.000179,2]
[401459755,1768239047422,-268.281214,0.000179,2]
[401459756,1768239047432,-874.374948,0.000179,2]
[401459757,1768239047441,-874.374948,0.000179,2]
[401459758,1768239047451,-874.374948,0.000179,2]
[401459759,1768239047460,-151.0,0.000179,2]
[401459760,1768239047470,-151.0,0.000179,2]
[401459761,1768239047479,-151.0,0.000179,2]
[401459762,1768239047488,-171.582681,0.000179,2]
[401459763,1768239047498,-151.0,0.000179,2]
[401459764,1768239047507,-151.0,0.000179,2]
[401459765,1768239047517,-865.67722,0.000179,2]
[401459766,1768239047526,-865.67722,0.000179,2]
[401459767,1768239047536,-865.67722,0.000179,2]
[401459768,1768239047545,-865.67722,0.000179,2]
[401459769,1768239047555,-214.616436,0.000179,2]
[401459770,1768239047564,-168.758337,0.000179,2]
[401459771,1768239047573,-151.0,0.000179,2]
[401459772,1768239047583,-214.616436,0.000179,2]
[401459773,1768239047593,-214.616436,0.000179,2]
[401459774,1768239047602,-151.0,0.000179,2]
[401459775,1768239047613,-214.616436,0.000179,2]
[401459776,1768239047625,-303.090355,0.000179,2]
[401459777,1768239047635,-154.522751,0.000179,2]
[401459778,1768239047649,-380.593723,0.000179,2]
[401459779,1768239047660,-303.090355,0.000179,2]
[401459780,1768239047669,-154.522751,0.000179,2]
[401459781,1768239047679,-380.593723,0.000179,2]
[401459782,1768239047689,-152.962761,0.000179,2]
[401459783,1768239047698,-303.090355,0.000179,2]
[401459784,1768239047708,-405.045724,0.000179,2]
[401459785,1768239047717,-151.0,0.000179,2]
[401459786,1768239047726,-154.522751,0.000179,2]
[401459787,1768239047736,-380.593723,0.000179,2]
[401459788,1768239047745,-152.962761,0.000179,2]
[401459789,1768239047755,-303.090355,0.000179,2]
[401459790,1768239047764,-405.045724,0.000179,2]
[401459791,1768239047774,-154.522751,0.000179,2]
[401459792,1768239047783,-380.593723,0.000179,2]
[401459793,1768239047793,-152.962761,0.000179,2]
[401459794,1768239047803,-405.045724,0.000179,2]
[401459795,1768239047812,-151.0,0.000179,2]
[401459796,1768239047823,-152.962761,0.000179,2]
[401459797,1768239047833,-151.0,0.000179,2]
[401459798,1768239047842,-405.045724,0.000179,2]
[401459799,1768239047852,-151.0,0.000179,2]
[401459800,1768239047863,-174.931358,0.000179,2]
[401459801,1768239047873,-151.0,0.000179,2]
[401459802,1768239047883,-258.755539,0.000179,2]
[401459803,1768239047892,-258.755539,0.000179,2]
[401459804,1768239047902,-258.755539,0.000179,2]
[401459805,1768239047911,-258.755539,0.000179,2]
[401459806,1768239047921,-480.973502,0.000179,2]
[401459807,1768239047930,-480.973502,0.000179,2]
[401459808,1768239047940,-151.0,0.000179,2]
[401459809,1768239047949,-480.973502,0.000179,2]
[401459810,1768239047960,-193.890203,0.000179,2]
[401459811,1768239047970,-480.973502,0.000179,2]
[401459812,1768239047980,-151.0,0.000179,2]
[401459813,1768239047990,-321.85947365,0.000179,2]
[401459814,1768239048000,-151.0,0.000179,2]
[401459815,1768239048011,-151.0,0.000179,2]
[401459816,1768239048020,-321.85947364,0.000179,2]
[401459817,1768239048029,-151.0,0.000179,2]
[401459818,1768239048039,-151.0,0.000179,2]
[401459819,1768239048049,-321.85947364,0.000179,2]
[401459820,1768239048060,-151.0,0.000179,2]
[401459821,1768239048070,-151.0,0.000179,2]
[401459822,1768239048080,-151.0,0.000179,2]
[401459823,1768239048089,-151.0,0.000179,2]
[401459824,1768239048099,-151.0,0.000179,2]
[401459825,1768239048112,-321.85947364,0.000179,2]
[401459826,1768239048122,-413.911364,0.000179,2]
[401459827,1768239048132,-151.0,0.000179,2]
[401459828,1768239048143,-151.0,0.000179,2]
[401459829,1768239048152,-413.911364,0.000179,2]
[401459830,1768239048162,-172.359513,0.000179,2]
[401459831,1768239048172,-151.0,0.000179,2]
[401459832,1768239048181,-796.6404,0.000179,2]
[401459833,1768239048192,-413.911364,0.000179,2]
[401459834,1768239048202,-796.6404,0.000179,2]
[401459835,1768239048211,-413.911364,0.000179,2]
[401459836,1768239048221,-321.85947364,0.000179,2]
[401459837,1768239048231,-151.0,0.000179,2]
[401459838,1768239048241,-796.6404,0.000179,2]
[401459839,1768239048250,-296.485774,0.000179,2]
[401459840,1768239048260,-796.6404,0.000179,2]
[401459841,1768239048270,-296.485774,0.000179,2]
[401459842,1768239048280,-151.0,0.000179,2]
[401459843,1768239048289,-296.485774,0.000179,2]
[401459844,1768239048299,-321.85947364,0.000179,2]
[401459845,1768239048309,-296.485774,0.000179,2]
[401459846,1768239048319,-321.85947364,0.000179,2]
[401459847,1768239048327,-151.0,0.000179,2]
[401459848,1768239048336,-178.723506,0.000179,2]
[401459849,1768239048346,-151.0,0.000179,2]
[401459850,1768239048359,-492.569989,0.000179,2]
[401459851,1768239048369,-321.85947364,0.000179,2]
[401459852,1768239048379,-673.646355,0.000179,2]
[401459853,1768239048389,-151.0,0.000179,2]
[401459854,1768239048398,-538.0,0.000179,6]
[401459855,1768239048408,-492.569989,0.000179,2]
[401459856,1768239048417,-777.804847,0.000179,2]
[401459857,1768239048426,-151.0,0.000179,2]
[401459858,1768239048436,-151.0,0.000179,2]
[401459859,1768239048445,-673.646355,0.000179,2]
[401459860,1768239048455,-492.569989,0.000179,2]
[401459861,1768239048464,-777.804847,0.000179,2]
[401459862,1768239048474,-151.0,0.000179,2]
[401459863,1768239048484,-673.646355,0.000179,2]
[401459864,1768239048495,-492.569989,0.000179,2]
[401459865,1768239048505,-777.804847,0.000179,2]
[401459866,1768239048514,-321.85947364,0.000179,2]
[401459867,1768239048524,-151.0,0.000179,2]
[401459868,1768239048534,-151.0,0.000179,2]
[401459869,1768239048543,-673.646355,0.000179,2]
[401459870,1768239048553,-1847.877127,0.000179,2]
[401459871,1768239048565,-151.0,0.000179,2]
[401459872,1768239048576,-866.607694,0.000179,2]
[401459873,1768239048586,-777.804847,0.000179,2]
[401459874,1768239048595,-1847.877127,0.000179,2]
[401459875,1768239048606,-866.607694,0.000179,2]
[401459876,1768239048619,-151.0,0.000179,2]
[401459877,1768239048628,-1847.877127,0.000179,2]
[401459878,1768239048637,-866.607694,0.000179,2]
[401459879,1768239048646,-151.0,0.000179,2]
[401459880,1768239048657,-321.85947364,0.000179,2]
[401459881,1768239048667,-1847.877127,0.000179,2]
[401459882,1768239048678,-866.607694,0.000179,2]
[401459883,1768239048689,-151.0,0.000179,2]
[401459884,1768239048700,-151.0,0.000179,2]
[401459885,1768239048710,-321.85947364,0.000179,2]
[401459886,1768239048722,-151.0,0.000179,2]
[401459887,1768239048733,-4268.298126,0.000179,2]
[401459888,1768239048746,-321.85947364,0.000179,2]
[401459889,1768239048759,-4268.298126,0.000179,2]
[401459890,1768239048771,-4268.298126,0.000179,2]
[401459891,1768239048780,-4268.298126,0.000179,2]
[401459892,1768239048791,-321.85947364,0.000179,2]
[401459893,1768239048802,-16872.10217032,0.000179,2]
[401459894,1768239048814,-321.85947364,0.000179,2]
[401459895,1768239048827,-321.85947364,0.000179,2]
[401459896,1768239048840,-771.460055,0.000179,2]
[401459897,1768239048850,-876.570737,0.000179,2]
[401459898,1768239048862,-321.85947364,0.000179,2]
[401459899,1768239048874,-771.460055,0.000179,2]
[401459900,1768239048886,-876.570737,0.000179,2]
[401459901,1768239048897,-771.460055,0.000179,2]
[401459902,1768239048907,-876.570737,0.000179,2]
[401459903,1768239048917,-585.678073,0.000179,2]
[401459904,1768239048927,-876.570737,0.000179,2]
[401459905,1768239048938,-771.460055,0.000179,2]
[401459906,1768239048948,-585.678073,0.000179,2]
[401459907,1768239048958,-321.85947364,0.000179,2]
[401459908,1768239048968,-585.678073,0.000179,2]
[401459909,1768239048978,-585.678073,0.000179,2]
[401459910,1768239048990,-151.0,0.000179,2]
[401459911,1768239049000,-151.0,0.000179,2]
[401459912,1768239049013,-321.85947364,0.000179,2]
[401459913,1768239049023,-242.100876,0.000179,2]
[401459914,1768239049033,-151.0,0.000179,2]
[401459915,1768239049044,-257.591853,0.000179,2]
[401459916,1768239049055,-151.0,0.000179,2]
[401459917,1768239049065,-257.591853,0.000179,2]
[401459918,1768239049076,-257.591853,0.000179,2]
[401459919,1768239049087,-321.85947364,0.000179,2]
[401459920,1768239049097,-1903.666685,0.000179,2]
[401459921,1768239049107,-257.591853,0.000179,2]
[401459922,1768239049118,-1903.666685,0.000179,2]
[401459923,1768239049129,-1903.666685,0.000179,2]
[401459924,1768239049139,-321.85947364,0.000179,2]
[401459925,1768239049148,-1903.666685,0.000179,2]
[401459926,1768239049158,-151.0,0.000179,2]
[401459927,1768239049167,-151.0,0.000179,2]
[401459928,1768239049177,-151.0,0.000179,2]
[401459929,1768239049187,-151.0,0.000179,2]
[401459930,1768239049196,-151.0,0.000179,2]
[401459931,1768239049206,-273.92712949,0.000179,2]
[401459932,1768239049215,-150.0,0.000179,2]
[401459933,1768239049225,-604.41169523,0.000179,2]
[401459934,1768239049235,-1000.0,0.000179,2]
[401459935,1768239049246,-151.0,0.000179,2]
[401459936,1768239049256,-3507.772819,0.000179,2]
[401459937,1768239049266,-405.895877,0.000179,2]
[401459938,1768239049277,-151.0,0.000179,2]
[401459939,1768239049287,-3507.772819,0.000179,2]
[401459940,1768239049297,-321.616994,0.000179,2]
[401459941,1768239049307,-405.895877,0.000179,2]
[401459942,1768239049319,-3507.772819,0.000179,2]
[401459943,1768239049329,-321.616994,0.000179,2]
[401459944,1768239049338,-405.895877,0.000179,2]
[401459945,1768239049348,-3507.772819,0.000179,2]
[401459946,1768239049359,-321.616994,0.000179,2]
[401459947,1768239049370,-405.895877,0.000179,2]
[401459948,1768239049379,-151.0,0.000179,2]
[401459949,1768239049390,-151.0,0.000179,2]
[401459950,1768239049400,-321.616994,0.000179,2]
[401459951,1768239049410,-203.639295,0.000179,2]
[401459952,1768239049420,-297.223105,0.000179,2]
[401459953,1768239049430,-188.649996,0.000179,2]
[401459954,1768239049440,-1273.49565,0.000179,2]
[401459955,1768239049450,-297.223105,0.000179,2]
[401459956,1768239049460,-1273.49565,0.000179,2]
[401459957,1768239049471,-1273.49565,0.000179,2]
[401459958,1768239049481,-297.223105,0.000179,2]
[401459959,1768239049491,-151.0,0.000179,2]
[401459960,1768239049501,-1273.49565,0.000179,2]
[401459961,1768239049511,-297.223105,0.000179,2]
[401459962,1768239049521,-1230.432107,0.000179,2]
[401459963,1768239049531,-788.412285,0.000179,2]
[401459964,1768239049541,-229.226321,0.000179,2]
[401459965,1768239049552,-1230.432107,0.000179,2]
[401459966,1768239049564,-1063.00738603,0.000179,2]
[401459967,1768239049576,-788.412285,0.000179,2]
[401459968,1768239049587,-229.226321,0.000179,2]
[401459969,1768239049597,-1230.432107,0.000179,2]
[401459970,1768239049607,-229.226321,0.000179,2]
[401459971,1768239049621,-788.412285,0.000179,2]
[401459972,1768239049631,-1230.432107,0.000179,2]
[401459973,1768239049641,-229.226321,0.000179,2]
[401459974,1768239049651,-2096.876442,0.000179,2]
[401459975,1768239049661,-2096.876442,0.000179,2]
[401459976,1768239049671,-718.397083,0.000179,2]
[401459977,1768239049681,-2096.876442,0.000179,2]
[401459978,1768239049693,-718.397083,0.000179,2]
[401459979,1768239049703,-718.397083,0.000179,2]
[401459980,1768239049713,-2096.876442,0.000179,2]
[401459981,1768239049723,-788.412285,0.000179,2]
[401459982,1768239049736,-718.397083,0.000179,2]
[401459983,1768239049747,-3736.20418754,0.000179,2]
[401459984,1768239049758,-151.0,0.000179,2]
[401459985,1768239049768,-265.669936,0.000179,2]
[401459986,1768239049778,-151.0,0.000179,2]
[401459987,1768239049788,-151.0,0.000179,2]
[401459988,1768239049798,-151.0,0.000179,2]
[401459989,1768239049809,-151.0,0.000179,2]
[401459990,1768239049819,-151.0,0.000179,2]
[401459991,1768239049829,-300.88588,0.000179,2]
[401459992,1768239049848,-406.875021,0.000179,2]
[401459993,1768239049860,-406.875021,0.000179,2]
[401459994,1768239049871,-406.875021,0.000179,2]
[401459995,1768239049882,-233.506514,0.000179,2]
[401459996,1768239049893,-169.699624,0.000179,2]
[401459997,1768239049904,-406.875021,0.000179,2]
[401459998,1768239049915,-233.506514,0.000179,2]
[401459999,1768239049926,-214.572712,0.000179,2]
[401460000,1768239049938,-169.699624,0.000179,2]
[401460001,1768239049950,-233.506514,0.000179,2]
[401460002,1768239049961,-214.572712,0.000179,2]
[401460003,1768239049972,-169.699624,0.000179,2]
[401460004,1768239049982,-233.506514,0.000179,2]
[401460005,1768239049992,-151.0,0.000179,2]
[401460006,1768239050005,-214.572712,0.000179,2]
[401460007,1768239050017,-169.699624,0.000179,2]
[401460008,1768239050029,-151.0,0.000179,2]
[401460009,1768239050039,-151.0,0.000179,2]
[401460010,1768239050050,-214.572712,0.000179,2]
[401460011,1768239050062,-9379.565638,0.000179,2]
[401460012,1768239050073,-151.0,0.000179,2]
[401460013,1768239050083,-151.0,0.000179,2]
[401460014,1768239050095,-151.0,0.000179,2]
[401460015,1768239050107,-9379.565638,0.000179,2]
[401460016,1768239050119,-151.0,0.000179,2]
[401460017,1768239050131,-9379.565638,0.000179,2]
[401460018,1768239050141,-151.0,0.000179,2]
[401460019,1768239050151,-2163.53589,0.000179,2]
[401460020,1768239050162,-9379.565638,0.000179,2]
[401460021,1768239050173,-2163.53589,0.000179,2]
[401460022,1768239050184,-151.0,0.000179,2]
[401460023,1768239050198,-2163.53589,0.000179,2]
[401460024,1768239050209,-151.0,0.000179,2]
[401460025,1768239050220,-151.0,0.000179,2]
[401460026,1768239050231,-2163.53589,0.000179,2]
[401460027,1768239050243,-1984.753085,0.000179,2]
[401460028,1768239050253,-505.0,0.0001791,2]
[401460029,1768239050265,-1267.0,0.0001791,2]
[401460030,1768239050276,-915.241,0.0001791,2]
[401460031,1768239050287,-1202.614,0.0001791,2]
[401460032,1768239050299,-4292.56923,0.0001791,2]
[401460033,1768239050310,-614.0,0.0001791,2]
[401460034,1768239050321,-1406.895,0.0001791,2]
[401460035,1768239050333,-4821.0,0.0001791,2]
[401460036,1768239050344,-150.0,0.00017911,2]
[401460037,1768239050355,-150.0,0.00017914,2]
[401460038,1768239050366,-500.0,0.00017918,2]
[401460039,1768239050376,-734.0,0.00017918,2]
[401460040,1768239050387,-500.0,0.00017918,2]
[401460041,1768239050398,-500.0,0.00017918,2]
[401460042,1768239050409,-500.0,0.00017918,2]
[401460043,1768239050420,-653.0,0.00017918,2]
[401460044,1768239050431,-553.74,0.00017929,2]
[401460045,1768239050442,-150.0,0.00017931,2]
[401460046,1768239050453,-275.91,0.00017937,2]
[401460047,1768239050463,-150.0,0.00017941,2]
[401460048,1768239050474,-150.0,0.00017949,2]
[401460049,1768239050485,-150.0,0.00017949,2]
[401460050,1768239050495,-150.0,0.00017957,2]
[401460051,1768239050506,-150.0,0.00017965,2]
[401460052,1768239050517,-587.0,0.00017966,2]
[401460053,1768239050528,-150.0,0.0001797,2]
[401460054,1768239050539,-150.0,0.0001797,2]
[401460055,1768239050550,-150.0,0.0001797,2]
[401460056,1768239050565,-500.0,0.00017972,2]
[401460057,1768239050577,-6380.0,0.00017973,2]
[401460058,1768239050588,-500.0,0.00017973,2]
[401460059,1768239050599,-610.36957715,0.00017973,2]
[401460060,1768239050615,-273.6592917,0.00017973,2]
[401460061,1768239050633,-902.39549897,0.00017973,2]
[401460062,1768239050644,-500.0,0.00017973,2]
[401460063,1768239050656,-500.0,0.00017973,2]
[401460064,1768239050668,-500.0,0.00017973,2]
[401460065,1768239050679,-150.0,0.00017973,2]
[401460066,1768239050694,-500.0,0.00017973,2]
[401460067,1768239050705,-500.0,0.00017973,2]
[401460068,1768239050716,-642.03010417,0.00017973,2]
[401460069,1768239050727,-500.0,0.00017973,2]
[401460070,1768239050739,-500.0,0.00017973,2]